[Event "Titled Tuesday Blitz February 14 Early 2023"]
[White "Pantsulaia, Levan"]
[Black "Bortnyk, Olexandr"]
[WhiteFideId "13602071"]
[BlackFideId "14120828"]
[WhiteElo "2570"]
[BlackElo "2605"]
[Result "1-0"]
[Round "09"]
[TimeControl "180+2"]
[Date "2023.02.14"]
[WhiteClock "0:00:09"]
[BlackClock "0:00:06"]

1. Nf3 {[%clk 0:03:00]}  Nf6 {[%clk 0:02:57]} 2. g3 {[%clk 0:02:59]}  d6 {[%clk 0:02:55]} 3. Bg2 {[%clk 0:02:57]}  g6 {[%clk 0:02:56]} 4. b3 {[%clk 0:02:54]}  Bg7 {[%clk 0:02:57]} 5. Bb2 {[%clk 0:02:55]}  O-O {[%clk 0:02:57]} 6. d4 {[%clk 0:02:52]}  a5 {[%clk 0:02:56]} 7. c4 {[%clk 0:02:49]}  Bf5 {[%clk 0:02:54]} 8. Nc3 {[%clk 0:02:48]}  Ne4 {[%clk 0:02:54]} 9. O-O {[%clk 0:02:47]}  Nxc3 {[%clk 0:02:54]} 10. Bxc3 {[%clk 0:02:48]}  Be4 {[%clk 0:02:55]} 11. Bh3 {[%clk 0:02:41]}  Bxf3 {[%clk 0:02:53]} 12. exf3 {[%clk 0:02:41]}  c5 {[%clk 0:02:53]} 13. Qd2 {[%clk 0:02:39]}  Nc6 {[%clk 0:02:51]} 14. d5 {[%clk 0:02:35]}  Bxc3 {[%clk 0:02:52]} 15. Qxc3 {[%clk 0:02:34]}  Nd4 {[%clk 0:02:52]} 16. Rfe1 {[%clk 0:02:31]}  a4 {[%clk 0:02:47]} 17. b4 {[%clk 0:02:29]}  a3 {[%clk 0:02:42]} 18. bxc5 {[%clk 0:02:16]}  dxc5 {[%clk 0:02:43]} 19. Rab1 {[%clk 0:02:17]}  b6 {[%clk 0:02:39]} 20. Re3 {[%clk 0:02:12]}  Ra4 {[%clk 0:02:34]} 21. Bf1 {[%clk 0:02:11]}  Qd6 {[%clk 0:02:31]} 22. Rbe1 {[%clk 0:02:03]}  Qf6 {[%clk 0:02:21]} 23. Kg2 {[%clk 0:01:59]}  Ra7 {[%clk 0:02:10]} 24. Qc1 {[%clk 0:01:56]}  Rfa8 {[%clk 0:02:05]} 25. h4 {[%clk 0:01:53]}  h5 {[%clk 0:02:04]} 26. f4 {[%clk 0:01:48]}  Nf5 {[%clk 0:02:02]} 27. Re5 {[%clk 0:01:48]}  Nd4 {[%clk 0:01:59]} 28. Bd3 {[%clk 0:01:48]}  Rd7 {[%clk 0:01:55]} 29. Qb1 {[%clk 0:01:40]}  Kf8 {[%clk 0:01:50]} 30. f5 {[%clk 0:01:33]}  gxf5 {[%clk 0:01:37]} 31. Bxf5 {[%clk 0:01:32]}  Rd6 {[%clk 0:01:38]} 32. Bd3 {[%clk 0:01:27]}  Nf3 {[%clk 0:01:26]} 33. Rxh5 {[%clk 0:01:20]}  Nxe1+ {[%clk 0:01:25]} 34. Qxe1 {[%clk 0:01:21]}  Ke8 {[%clk 0:01:12]} 35. Qe3 {[%clk 0:01:03]}  Kd7 {[%clk 0:01:12]} 36. Rf5 {[%clk 0:00:59]}  Qg7 {[%clk 0:01:07]} 37. Qf4 {[%clk 0:00:54]}  Rf8 {[%clk 0:00:59]} 38. Bc2 {[%clk 0:00:40]}  Qb2 {[%clk 0:00:40]} 39. Ba4+ {[%clk 0:00:37]}  Kc7 {[%clk 0:00:28]} 40. Rxf7 {[%clk 0:00:36]}  Rxf7 {[%clk 0:00:29]} 41. Qxf7 {[%clk 0:00:36]}  Qe2 {[%clk 0:00:29]} 42. Qe8 {[%clk 0:00:25]}  Qe4+ {[%clk 0:00:25]} 43. Kh2 {[%clk 0:00:24]}  Qe2 {[%clk 0:00:19]} 44. Kg2 {[%clk 0:00:21]}  Qe4+ {[%clk 0:00:14]} 45. Kh2 {[%clk 0:00:20]}  Qf5 {[%clk 0:00:08]} 46. Qxe7+ {[%clk 0:00:18]}  Kc8 {[%clk 0:00:08]} 47. Qxd6 {[%clk 0:00:16]}  Qxf2+ {[%clk 0:00:08]} 48. Kh3 {[%clk 0:00:17]}  Qf5+ {[%clk 0:00:07]} 49. Kg2 {[%clk 0:00:17]}  Qe4+ {[%clk 0:00:06]} 50. Kh2 {[%clk 0:00:17]}  Qe2+ {[%clk 0:00:04]} 51. Kh3 {[%clk 0:00:17]}  Qf1+ {[%clk 0:00:05]} 52. Kg4 {[%clk 0:00:15]}  Qxc4+ {[%clk 0:00:06]} 53. Qf4 {[%clk 0:00:16]}  Qxa2 {[%clk 0:00:04]} 54. Qf8+ {[%clk 0:00:10]}  Kb7 {[%clk 0:00:05]} 55. Bc6+ {[%clk 0:00:09]}  Kc7 {[%clk 0:00:05]} 56. Qe7+ {[%clk 0:00:09]}  Kb8 {[%clk 0:00:06]} 57. Qb7# {[%clk 0:00:09]} 1-0


[Site "https://www.chess.com"]

[Event "Titled Tuesday Blitz February 14 Early 2023"]
[White "Ahmadzada, Ahmad"]
[Black "Zhigalko, Sergei"]
[WhiteFideId "13413007"]
[BlackFideId "13502956"]
[WhiteElo "2488"]
[BlackElo "2572"]
[Result "0-1"]
[Round "09"]
[TimeControl "180+2"]
[Date "2023.02.14"]
[WhiteClock "0:00:02"]
[BlackClock "0:00:47"]

1. Nf3 {[%clk 0:03:00]}  d5 {[%clk 0:03:00]} 2. g3 {[%clk 0:03:00]}  c6 {[%clk 0:03:00]} 3. Bg2 {[%clk 0:03:01]}  Bg4 {[%clk 0:03:01]} 4. O-O {[%clk 0:03:00]}  Nd7 {[%clk 0:03:02]} 5. d3 {[%clk 0:02:59]}  e6 {[%clk 0:03:02]} 6. b3 {[%clk 0:02:55]}  Ngf6 {[%clk 0:03:01]} 7. Bb2 {[%clk 0:02:55]}  a5 {[%clk 0:02:59]} 8. a3 {[%clk 0:02:54]}  Bd6 {[%clk 0:02:57]} 9. Nbd2 {[%clk 0:02:53]}  O-O {[%clk 0:02:57]} 10. c4 {[%clk 0:02:49]}  Qe7 {[%clk 0:02:57]} 11. Qc2 {[%clk 0:02:42]}  h6 {[%clk 0:02:56]} 12. Rfe1 {[%clk 0:02:39]}  e5 {[%clk 0:02:55]} 13. e4 {[%clk 0:02:34]}  d4 {[%clk 0:02:55]} 14. Nf1 {[%clk 0:02:11]}  Qe6 {[%clk 0:02:40]} 15. N3d2 {[%clk 0:01:57]}  Qe7 {[%clk 0:02:23]} 16. h3 {[%clk 0:01:50]}  Be6 {[%clk 0:02:23]} 17. Nh2 {[%clk 0:01:43]}  Rae8 {[%clk 0:02:06]} 18. Rf1 {[%clk 0:01:38]}  Nh7 {[%clk 0:02:06]} 19. f4 {[%clk 0:01:36]}  f5 {[%clk 0:02:01]} 20. exf5 {[%clk 0:01:32]}  Rxf5 {[%clk 0:01:50]} 21. Ndf3 {[%clk 0:01:07]}  c5 {[%clk 0:01:38]} 22. Nh4 {[%clk 0:01:02]}  exf4 {[%clk 0:01:29]} 23. Nxf5 {[%clk 0:00:56]}  Bxf5 {[%clk 0:01:30]} 24. Rae1 {[%clk 0:00:43]}  Qxe1 {[%clk 0:01:26]} 25. Rxe1 {[%clk 0:00:43]}  Rxe1+ {[%clk 0:01:27]} 26. Kf2 {[%clk 0:00:15]}  Re3 {[%clk 0:01:24]} 27. gxf4 {[%clk 0:00:05]}  Bxd3 {[%clk 0:01:24]} 28. Qc1 {[%clk 0:00:03]}  Bxf4 {[%clk 0:01:19]} 29. Qh1 {[%clk 0:00:04]}  Re2+ {[%clk 0:01:06]} 30. Kf3 {[%clk 0:00:03]}  g5 {[%clk 0:01:06]} 31. Ng4 {[%clk 0:00:02]}  h5 {[%clk 0:00:55]} 32. Bf1 {[%clk 0:00:03]}  hxg4+ {[%clk 0:00:50]} 33. Kxg4 {[%clk 0:00:03]}  Nhf6+ {[%clk 0:00:47]} 34. Kf3 {[%clk 0:00:02]}  Ne5# {[%clk 0:00:47]} 0-1


[Site "https://www.chess.com"]

[Event "Titled Tuesday Blitz February 14 Early 2023"]
[White "Lortkipanidze, Nodar"]
[Black "Yeletsky, Ivan"]
[WhiteFideId "13604058"]
[BlackFideId "24180327"]
[WhiteElo "2406"]
[BlackElo "2494"]
[Result "1/2-1/2"]
[Round "09"]
[TimeControl "180+2"]
[Date "2023.02.14"]
[WhiteClock "0:01:46"]
[BlackClock "0:00:27"]

1. e4 {[%clk 0:03:00]}  c5 {[%clk 0:02:59]} 2. c3 {[%clk 0:03:00]}  e6 {[%clk 0:02:59]} 3. d4 {[%clk 0:03:00]}  d5 {[%clk 0:02:59]} 4. exd5 {[%clk 0:03:01]}  exd5 {[%clk 0:02:59]} 5. Be3 {[%clk 0:03:02]}  cxd4 {[%clk 0:02:57]} 6. Bxd4 {[%clk 0:03:03]}  Nc6 {[%clk 0:02:57]} 7. Nf3 {[%clk 0:02:59]}  Nf6 {[%clk 0:02:56]} 8. Bxf6 {[%clk 0:02:59]}  Qxf6 {[%clk 0:02:55]} 9. Qxd5 {[%clk 0:03:00]}  Bf5 {[%clk 0:02:45]} 10. Bb5 {[%clk 0:02:55]}  Be7 {[%clk 0:02:34]} 11. Qe5 {[%clk 0:02:41]}  O-O {[%clk 0:02:18]} 12. Qxf6 {[%clk 0:02:40]}  Bxf6 {[%clk 0:02:19]} 13. O-O {[%clk 0:02:41]}  Rfd8 {[%clk 0:02:08]} 14. Na3 {[%clk 0:02:37]}  Na5 {[%clk 0:01:59]} 15. Rad1 {[%clk 0:02:34]}  a6 {[%clk 0:01:57]} 16. Be2 {[%clk 0:02:33]}  Re8 {[%clk 0:01:51]} 17. Bd3 {[%clk 0:02:29]}  Bg4 {[%clk 0:01:51]} 18. Nc4 {[%clk 0:02:28]}  Nxc4 {[%clk 0:01:37]} 19. Bxc4 {[%clk 0:02:28]}  b5 {[%clk 0:01:37]} 20. Bd5 {[%clk 0:02:25]}  Rad8 {[%clk 0:01:37]} 21. h3 {[%clk 0:02:24]}  Bh5 {[%clk 0:01:34]} 22. Rfe1 {[%clk 0:02:19]}  Rxe1+ {[%clk 0:01:22]} 23. Rxe1 {[%clk 0:02:19]}  h6 {[%clk 0:01:23]} 24. Bb7 {[%clk 0:02:11]}  Bxf3 {[%clk 0:00:56]} 25. Bxf3 {[%clk 0:02:09]}  Rd2 {[%clk 0:00:56]} 26. Re2 {[%clk 0:02:10]}  Rxe2 {[%clk 0:00:56]} 27. Bxe2 {[%clk 0:02:11]}  Bg5 {[%clk 0:00:57]} 28. b3 {[%clk 0:02:00]}  Bd2 {[%clk 0:00:55]} 29. c4 {[%clk 0:02:00]}  bxc4 {[%clk 0:00:56]} 30. bxc4 {[%clk 0:02:01]}  Bb4 {[%clk 0:00:56]} 31. c5 {[%clk 0:01:59]}  Bxc5 {[%clk 0:00:56]} 32. Bxa6 {[%clk 0:02:00]}  Kf8 {[%clk 0:00:57]} 33. Bc4 {[%clk 0:02:00]}  Ke7 {[%clk 0:00:52]} 34. Kf1 {[%clk 0:01:59]}  f5 {[%clk 0:00:44]} 35. a4 {[%clk 0:01:59]}  Bb6 {[%clk 0:00:44]} 36. Ke2 {[%clk 0:01:59]}  g5 {[%clk 0:00:38]} 37. g4 {[%clk 0:01:53]}  Kf6 {[%clk 0:00:36]} 38. Bd3 {[%clk 0:01:53]}  fxg4 {[%clk 0:00:35]} 39. hxg4 {[%clk 0:01:53]}  Ke5 {[%clk 0:00:36]} 40. f3 {[%clk 0:01:53]}  Kd4 {[%clk 0:00:33]} 41. Be4 {[%clk 0:01:53]}  Ba5 {[%clk 0:00:34]} 42. Bb7 {[%clk 0:01:52]}  Bb4 {[%clk 0:00:33]} 43. Kd1 {[%clk 0:01:51]}  Kd3 {[%clk 0:00:33]} 44. Ba6+ {[%clk 0:01:51]}  Ke3 {[%clk 0:00:29]} 45. Bb7 {[%clk 0:01:51]}  Kd3 {[%clk 0:00:29]} 46. Be4+ {[%clk 0:01:50]}  Kc3 {[%clk 0:00:28]} 47. Ke2 {[%clk 0:01:51]}  Kd4 {[%clk 0:00:27]} 48. Bb7 {[%clk 0:01:50]}  Ba5 {[%clk 0:00:27]} 49. Ba6 {[%clk 0:01:50]}  Bb4 {[%clk 0:00:27]} 50. Kd1 {[%clk 0:01:49]}  Kc3 {[%clk 0:00:27]} 51. Ke2 {[%clk 0:01:48]}  Kd4 {[%clk 0:00:28]} 52. Kf2 {[%clk 0:01:49]}  Ba5 {[%clk 0:00:27]} 53. Ke2 {[%clk 0:01:46]}  Bb4 {[%clk 0:00:27]} 1/2-1/2


[Site "https://www.chess.com"]

[Event "Titled Tuesday Blitz February 14 Early 2023"]
[White "Madaminov, Mukhiddin"]
[Black "Tan, Zhongyi"]
[WhiteFideId "14210703"]
[BlackFideId "8603642"]
[WhiteElo "2422"]
[BlackElo "2517"]
[Result "1-0"]
[Round "09"]
[TimeControl "180+2"]
[Date "2023.02.14"]
[WhiteClock "0:01:05"]
[BlackClock "0:00:08"]

1. d4 {[%clk 0:03:00]}  Nf6 {[%clk 0:02:58]} 2. Nc3 {[%clk 0:02:59]}  d5 {[%clk 0:02:58]} 3. Bf4 {[%clk 0:02:59]}  Bf5 {[%clk 0:02:52]} 4. f3 {[%clk 0:02:58]}  e6 {[%clk 0:02:50]} 5. g4 {[%clk 0:02:58]}  Bg6 {[%clk 0:02:49]} 6. h4 {[%clk 0:02:59]}  h6 {[%clk 0:02:48]} 7. e3 {[%clk 0:02:59]}  c5 {[%clk 0:02:45]} 8. Nb5 {[%clk 0:02:58]}  Na6 {[%clk 0:02:44]} 9. c3 {[%clk 0:02:59]}  Be7 {[%clk 0:02:42]} 10. a4 {[%clk 0:02:58]}  Nd7 {[%clk 0:02:13]} 11. h5 {[%clk 0:02:46]}  Bh7 {[%clk 0:02:13]} 12. Bd3 {[%clk 0:02:46]}  Bxd3 {[%clk 0:02:04]} 13. Qxd3 {[%clk 0:02:47]}  O-O {[%clk 0:02:04]} 14. Ne2 {[%clk 0:02:44]}  Bh4+ {[%clk 0:01:55]} 15. Kf1 {[%clk 0:02:41]}  Bg5 {[%clk 0:01:53]} 16. Bg3 {[%clk 0:02:26]}  cxd4 {[%clk 0:01:50]} 17. exd4 {[%clk 0:02:26]}  f5 {[%clk 0:01:47]} 18. Kg2 {[%clk 0:02:19]}  fxg4 {[%clk 0:01:41]} 19. fxg4 {[%clk 0:02:19]}  Nf6 {[%clk 0:01:41]} 20. Bd6 {[%clk 0:02:04]}  Rf7 {[%clk 0:01:36]} 21. Raf1 {[%clk 0:02:00]}  Qd7 {[%clk 0:01:27]} 22. Qf3 {[%clk 0:01:44]}  Nb8 {[%clk 0:01:11]} 23. Ba3 {[%clk 0:01:32]}  Nc6 {[%clk 0:01:01]} 24. Ng3 {[%clk 0:01:28]}  Na5 {[%clk 0:00:50]} 25. Nd6 {[%clk 0:01:19]}  Rff8 {[%clk 0:00:44]} 26. Qe2 {[%clk 0:01:19]}  Nc4 {[%clk 0:00:39]} 27. Nxc4 {[%clk 0:01:18]}  dxc4 {[%clk 0:00:39]} 28. Bxf8 {[%clk 0:01:18]}  Rxf8 {[%clk 0:00:39]} 29. Kh3 {[%clk 0:01:16]}  Rf7 {[%clk 0:00:29]} 30. Qe5 {[%clk 0:01:13]}  Nd5 {[%clk 0:00:27]} 31. Rxf7 {[%clk 0:01:12]}  Qxf7 {[%clk 0:00:27]} 32. Rf1 {[%clk 0:01:13]}  Bf4 {[%clk 0:00:26]} 33. Qe4 {[%clk 0:01:07]}  Qf6 {[%clk 0:00:08]} 34. Ne2 {[%clk 0:01:06]}  e5 {[%clk 0:00:08]} 35. Qxd5+ {[%clk 0:01:05]} 1-0


[Site "https://www.chess.com"]

[Event "Titled Tuesday Blitz February 14 Early 2023"]
[White "Hakobyan, Aram"]
[Black "Papasimakopoulos, Alexandros"]
[WhiteFideId "13306677"]
[BlackFideId "4244125"]
[WhiteElo "2608"]
[BlackElo "2401"]
[Result "1-0"]
[Round "09"]
[TimeControl "180+2"]
[Date "2023.02.14"]
[WhiteClock "0:00:30"]
[BlackClock "0:00:20"]

1. e4 {[%clk 0:03:00]}  e6 {[%clk 0:02:58]} 2. d4 {[%clk 0:03:00]}  d5 {[%clk 0:02:58]} 3. Nc3 {[%clk 0:03:01]}  Bb4 {[%clk 0:02:58]} 4. exd5 {[%clk 0:03:01]}  exd5 {[%clk 0:02:43]} 5. Bd3 {[%clk 0:03:01]}  Nc6 {[%clk 0:02:43]} 6. a3 {[%clk 0:03:00]}  Bxc3+ {[%clk 0:02:43]} 7. bxc3 {[%clk 0:03:01]}  Nf6 {[%clk 0:02:42]} 8. Ne2 {[%clk 0:03:00]}  O-O {[%clk 0:02:42]} 9. O-O {[%clk 0:03:00]}  Re8 {[%clk 0:02:42]} 10. Bg5 {[%clk 0:02:51]}  h6 {[%clk 0:02:42]} 11. Bh4 {[%clk 0:02:51]}  Qd6 {[%clk 0:02:28]} 12. Bg3 {[%clk 0:02:41]}  Qd8 {[%clk 0:02:28]} 13. Nf4 {[%clk 0:02:37]}  Ne4 {[%clk 0:02:21]} 14. Re1 {[%clk 0:02:17]}  Bf5 {[%clk 0:02:13]} 15. Qh5 {[%clk 0:02:05]}  Qd7 {[%clk 0:01:51]} 16. f3 {[%clk 0:01:59]}  Nxg3 {[%clk 0:01:51]} 17. hxg3 {[%clk 0:02:00]}  Bxd3 {[%clk 0:01:51]} 18. cxd3 {[%clk 0:02:01]}  Ne7 {[%clk 0:01:46]} 19. Re5 {[%clk 0:01:58]}  c6 {[%clk 0:01:34]} 20. Rae1 {[%clk 0:01:57]}  Kf8 {[%clk 0:01:34]} 21. g4 {[%clk 0:01:54]}  Ng8 {[%clk 0:01:31]} 22. g5 {[%clk 0:01:39]}  Rxe5 {[%clk 0:01:28]} 23. dxe5 {[%clk 0:01:16]}  Qf5 {[%clk 0:01:21]} 24. gxh6 {[%clk 0:01:13]}  Nxh6 {[%clk 0:01:22]} 25. Qxf5 {[%clk 0:01:07]}  Nxf5 {[%clk 0:01:23]} 26. d4 {[%clk 0:01:04]}  Ke7 {[%clk 0:01:04]} 27. a4 {[%clk 0:01:00]}  g6 {[%clk 0:01:02]} 28. g4 {[%clk 0:00:55]}  Ng7 {[%clk 0:01:02]} 29. a5 {[%clk 0:00:50]}  Ne6 {[%clk 0:01:02]} 30. Nd3 {[%clk 0:00:49]}  g5 {[%clk 0:00:57]} 31. Rb1 {[%clk 0:00:48]}  Rb8 {[%clk 0:00:48]} 32. Nb4 {[%clk 0:00:46]}  Nd8 {[%clk 0:00:48]} 33. Na6 {[%clk 0:00:43]}  Rc8 {[%clk 0:00:48]} 34. Nc5 {[%clk 0:00:43]}  Rb8 {[%clk 0:00:42]} 35. Kf2 {[%clk 0:00:42]}  b6 {[%clk 0:00:42]} 36. Nd3 {[%clk 0:00:39]}  Ne6 {[%clk 0:00:39]} 37. Ke3 {[%clk 0:00:36]}  Kd7 {[%clk 0:00:37]} 38. axb6 {[%clk 0:00:35]}  axb6 {[%clk 0:00:37]} 39. Ra1 {[%clk 0:00:35]}  Rb7 {[%clk 0:00:31]} 40. Ra6 {[%clk 0:00:31]}  Ke7 {[%clk 0:00:30]} 41. Ra8 {[%clk 0:00:25]}  c5 {[%clk 0:00:29]} 42. Ra6 {[%clk 0:00:22]}  Kd7 {[%clk 0:00:20]} 43. dxc5 {[%clk 0:00:23]}  bxc5 {[%clk 0:00:19]} 44. Rxe6 {[%clk 0:00:22]}  fxe6 {[%clk 0:00:12]} 45. Nxc5+ {[%clk 0:00:22]}  Kc6 {[%clk 0:00:13]} 46. Nxb7 {[%clk 0:00:23]}  Kxb7 {[%clk 0:00:14]} 47. f4 {[%clk 0:00:24]}  gxf4+ {[%clk 0:00:14]} 48. Kxf4 {[%clk 0:00:25]}  Kc6 {[%clk 0:00:14]} 49. g5 {[%clk 0:00:21]}  Kd7 {[%clk 0:00:14]} 50. g6 {[%clk 0:00:22]}  Ke7 {[%clk 0:00:15]} 51. Kg5 {[%clk 0:00:23]}  d4 {[%clk 0:00:14]} 52. cxd4 {[%clk 0:00:24]}  Kf8 {[%clk 0:00:14]} 53. Kf6 {[%clk 0:00:25]}  Kg8 {[%clk 0:00:15]} 54. Kxe6 {[%clk 0:00:26]}  Kg7 {[%clk 0:00:16]} 55. Kf5 {[%clk 0:00:27]}  Kf8 {[%clk 0:00:16]} 56. d5 {[%clk 0:00:27]}  Kg7 {[%clk 0:00:17]} 57. d6 {[%clk 0:00:28]}  Kf8 {[%clk 0:00:18]} 58. d7 {[%clk 0:00:29]}  Kg7 {[%clk 0:00:19]} 59. d8=Q {[%clk 0:00:29]}  Kh6 {[%clk 0:00:20]} 60. Qh8# {[%clk 0:00:30]} 1-0


[Site "https://www.chess.com"]

[Event "Titled Tuesday Blitz February 14 Early 2023"]
[White "Lazavik, Denis"]
[Black "Postny, Evgeny"]
[WhiteFideId "13515110"]
[BlackFideId "2804344"]
[WhiteElo "2544"]
[BlackElo "2549"]
[Result "1/2-1/2"]
[Round "09"]
[TimeControl "180+2"]
[Date "2023.02.14"]
[WhiteClock "0:00:04"]
[BlackClock "0:00:05"]

1. d4 {[%clk 0:03:00]}  d5 {[%clk 0:02:56]} 2. c4 {[%clk 0:03:01]}  c6 {[%clk 0:02:56]} 3. Nf3 {[%clk 0:03:01]}  Nf6 {[%clk 0:02:56]} 4. e3 {[%clk 0:03:01]}  Bg4 {[%clk 0:02:55]} 5. Qb3 {[%clk 0:02:59]}  Qb6 {[%clk 0:02:54]} 6. Ne5 {[%clk 0:02:58]}  Bf5 {[%clk 0:02:49]} 7. cxd5 {[%clk 0:02:56]}  Qxb3 {[%clk 0:02:43]} 8. axb3 {[%clk 0:02:56]}  Nxd5 {[%clk 0:02:43]} 9. Bd3 {[%clk 0:02:54]}  Bxd3 {[%clk 0:02:43]} 10. Nxd3 {[%clk 0:02:55]}  Na6 {[%clk 0:02:36]} 11. Bd2 {[%clk 0:02:54]}  e6 {[%clk 0:02:36]} 12. Ra4 {[%clk 0:02:53]}  Nb6 {[%clk 0:02:32]} 13. Ra5 {[%clk 0:02:53]}  Nd5 {[%clk 0:02:30]} 14. Ke2 {[%clk 0:02:43]}  Be7 {[%clk 0:02:28]} 15. Na3 {[%clk 0:02:30]}  Bd8 {[%clk 0:02:17]} 16. Rxa6 {[%clk 0:01:56]}  bxa6 {[%clk 0:02:18]} 17. Nc4 {[%clk 0:01:56]}  Rb8 {[%clk 0:02:05]} 18. Ra1 {[%clk 0:01:45]}  Rxb3 {[%clk 0:01:52]} 19. Rxa6 {[%clk 0:01:44]}  O-O {[%clk 0:01:44]} 20. Rxc6 {[%clk 0:01:33]}  Bb6 {[%clk 0:01:22]} 21. Nce5 {[%clk 0:01:13]}  Ne7 {[%clk 0:01:14]} 22. Rc2 {[%clk 0:01:02]}  Rc8 {[%clk 0:01:13]} 23. Nc5 {[%clk 0:01:02]}  Bxc5 {[%clk 0:01:09]} 24. dxc5 {[%clk 0:01:02]}  Nc6 {[%clk 0:01:07]} 25. Nd3 {[%clk 0:00:59]}  Rd8 {[%clk 0:00:58]} 26. Bc3 {[%clk 0:00:59]}  a5 {[%clk 0:00:52]} 27. Rc1 {[%clk 0:00:55]}  f6 {[%clk 0:00:48]} 28. Ra1 {[%clk 0:00:47]}  e5 {[%clk 0:00:47]} 29. f4 {[%clk 0:00:35]}  exf4 {[%clk 0:00:40]} 30. Nxf4 {[%clk 0:00:35]}  Kf7 {[%clk 0:00:38]} 31. Nd3 {[%clk 0:00:31]}  Rd7 {[%clk 0:00:25]} 32. g4 {[%clk 0:00:30]}  h6 {[%clk 0:00:24]} 33. h4 {[%clk 0:00:30]}  Rb5 {[%clk 0:00:24]} 34. Rf1 {[%clk 0:00:27]}  Kg8 {[%clk 0:00:17]} 35. Rg1 {[%clk 0:00:26]}  Rd5 {[%clk 0:00:13]} 36. e4 {[%clk 0:00:22]}  Rd7 {[%clk 0:00:12]} 37. Ke3 {[%clk 0:00:20]}  Re7 {[%clk 0:00:12]} 38. Kf4 {[%clk 0:00:15]}  Nb4 {[%clk 0:00:10]} 39. Nxb4 {[%clk 0:00:14]}  axb4 {[%clk 0:00:11]} 40. Bd4 {[%clk 0:00:15]}  Rb8 {[%clk 0:00:10]} 41. g5 {[%clk 0:00:13]}  fxg5+ {[%clk 0:00:09]} 42. hxg5 {[%clk 0:00:14]}  Rd8 {[%clk 0:00:09]} 43. Rd1 {[%clk 0:00:04]}  Red7 {[%clk 0:00:08]} 44. Ke3 {[%clk 0:00:04]}  hxg5 {[%clk 0:00:07]} 45. e5 {[%clk 0:00:05]}  Kf7 {[%clk 0:00:07]} 46. Ke4 {[%clk 0:00:03]}  Ke6 {[%clk 0:00:07]} 47. c6 {[%clk 0:00:04]}  Rc7 {[%clk 0:00:07]} 48. Rc1 {[%clk 0:00:04]}  Rdc8 {[%clk 0:00:08]} 49. Rc4 {[%clk 0:00:04]}  Rxc6 {[%clk 0:00:08]} 50. Rxb4 {[%clk 0:00:05]}  g4 {[%clk 0:00:08]} 51. Rb7 {[%clk 0:00:03]}  R8c7 {[%clk 0:00:08]} 52. Rb3 {[%clk 0:00:03]}  Rc4 {[%clk 0:00:05]} 53. Rb6+ {[%clk 0:00:03]}  R7c6 {[%clk 0:00:06]} 54. Rb7 {[%clk 0:00:04]}  g3 {[%clk 0:00:05]} 55. Rxg7 {[%clk 0:00:04]}  Rc7 {[%clk 0:00:05]} 56. Rg6+ {[%clk 0:00:04]}  Kf7 {[%clk 0:00:04]} 57. Rxg3 {[%clk 0:00:04]}  Rd7 {[%clk 0:00:05]} 58. Rd3 {[%clk 0:00:04]}  Ke6 {[%clk 0:00:05]} 59. Ke3 {[%clk 0:00:03]}  Rb4 {[%clk 0:00:05]} 60. Bc3 {[%clk 0:00:04]}  Rxd3+ {[%clk 0:00:04]} 61. Kxd3 {[%clk 0:00:04]}  Rb5 {[%clk 0:00:05]} 62. Kc4 {[%clk 0:00:05]}  Rb8 {[%clk 0:00:05]} 63. b4 {[%clk 0:00:04]}  Rc8+ {[%clk 0:00:05]} 64. Kb3 {[%clk 0:00:05]}  Kd5 {[%clk 0:00:06]} 65. Bb2 {[%clk 0:00:05]}  Rb8 {[%clk 0:00:06]} 66. Bc3 {[%clk 0:00:05]}  Rb7 {[%clk 0:00:05]} 67. Bb2 {[%clk 0:00:03]}  Rb8 {[%clk 0:00:04]} 68. Bc3 {[%clk 0:00:03]}  Rb7 {[%clk 0:00:05]} 69. Bb2 {[%clk 0:00:04]}  Rb8 {[%clk 0:00:05]} 1/2-1/2


[Site "https://www.chess.com"]

[Event "Titled Tuesday Blitz February 14 Early 2023"]
[White "Zemlyanskii, Ivan"]
[Black "Shimanov, Aleksandr"]
[WhiteFideId "24249971"]
[BlackFideId "4198603"]
[WhiteElo "2300"]
[BlackElo "2581"]
[Result "0-1"]
[Round "09"]
[TimeControl "180+2"]
[Date "2023.02.14"]
[WhiteClock "0:00:01"]
[BlackClock "0:00:13"]

1. d4 {[%clk 0:03:00]}  Nf6 {[%clk 0:02:53]} 2. c4 {[%clk 0:03:00]}  e6 {[%clk 0:02:54]} 3. Bf4 {[%clk 0:02:57]}  Bb4+ {[%clk 0:02:41]} 4. Nd2 {[%clk 0:02:56]}  d5 {[%clk 0:02:38]} 5. Nf3 {[%clk 0:02:36]}  O-O {[%clk 0:02:36]} 6. e3 {[%clk 0:02:29]}  b6 {[%clk 0:02:14]} 7. cxd5 {[%clk 0:02:26]}  Nxd5 {[%clk 0:02:11]} 8. Bg3 {[%clk 0:02:26]}  Bb7 {[%clk 0:02:10]} 9. Be2 {[%clk 0:02:20]}  Be7 {[%clk 0:02:07]} 10. O-O {[%clk 0:02:19]}  Nd7 {[%clk 0:02:06]} 11. Rc1 {[%clk 0:02:20]}  c5 {[%clk 0:02:06]} 12. Ne4 {[%clk 0:02:19]}  Nxe3 {[%clk 0:02:03]} 13. fxe3 {[%clk 0:02:13]}  Bxe4 {[%clk 0:02:03]} 14. Rc4 {[%clk 0:02:06]}  Nf6 {[%clk 0:01:53]} 15. Ne5 {[%clk 0:01:55]}  b5 {[%clk 0:01:36]} 16. Rc1 {[%clk 0:01:49]}  c4 {[%clk 0:01:35]} 17. Bf3 {[%clk 0:01:30]}  Rc8 {[%clk 0:01:35]} 18. Bh4 {[%clk 0:01:19]}  Bd5 {[%clk 0:01:19]} 19. Qe2 {[%clk 0:01:01]}  Ne4 {[%clk 0:01:17]} 20. Bxe7 {[%clk 0:00:59]}  Qxe7 {[%clk 0:01:18]} 21. b3 {[%clk 0:00:57]}  cxb3 {[%clk 0:01:14]} 22. axb3 {[%clk 0:00:58]}  Nc3 {[%clk 0:01:04]} 23. Qd3 {[%clk 0:00:53]}  b4 {[%clk 0:01:04]} 24. Nc4 {[%clk 0:00:40]}  Rfd8 {[%clk 0:00:54]} 25. Ra1 {[%clk 0:00:37]}  Bxc4 {[%clk 0:00:51]} 26. bxc4 {[%clk 0:00:38]}  e5 {[%clk 0:00:52]} 27. d5 {[%clk 0:00:24]}  e4 {[%clk 0:00:48]} 28. Bxe4 {[%clk 0:00:16]}  Qxe4 {[%clk 0:00:45]} 29. Qxe4 {[%clk 0:00:16]}  Nxe4 {[%clk 0:00:46]} 30. Rxa7 {[%clk 0:00:16]}  Nd6 {[%clk 0:00:43]} 31. e4 {[%clk 0:00:13]}  f6 {[%clk 0:00:41]} 32. Rf4 {[%clk 0:00:08]}  Rxc4 {[%clk 0:00:39]} 33. Rg4 {[%clk 0:00:08]}  g5 {[%clk 0:00:39]} 34. h4 {[%clk 0:00:07]}  Rxe4 {[%clk 0:00:39]} 35. Rg3 {[%clk 0:00:05]}  Rxh4 {[%clk 0:00:38]} 36. Re3 {[%clk 0:00:05]}  Re4 {[%clk 0:00:36]} 37. Rf3 {[%clk 0:00:06]}  Rf8 {[%clk 0:00:26]} 38. Rd7 {[%clk 0:00:05]}  Nc4 {[%clk 0:00:19]} 39. Rh3 {[%clk 0:00:04]}  Rf7 {[%clk 0:00:17]} 40. Rd8+ {[%clk 0:00:04]}  Kg7 {[%clk 0:00:18]} 41. d6 {[%clk 0:00:05]}  Rd4 {[%clk 0:00:18]} 42. Rb3 {[%clk 0:00:03]}  Rxd6 {[%clk 0:00:18]} 43. Ra8 {[%clk 0:00:03]}  Rd1+ {[%clk 0:00:13]} 44. Kh2 {[%clk 0:00:01]}  Nd2 {[%clk 0:00:13]} 45. Rxb4 {[%clk 0:00:01]}  Nf1+ {[%clk 0:00:13]} 0-1


[Site "https://www.chess.com"]